fUST/lending_fUST_20250928
["ID","MTS","AMOUNT","RATE_DAILY","PERIOD"]
[388156910,1759021848133,-500.0,0.00035768,2]
[388156911,1759021848143,-151.0,0.00035768,2]
[388156912,1759021848152,-500.0,0.00035768,2]
[388156913,1759021848162,-151.0,0.00035768,2]
[388156914,1759021848171,-151.0,0.00035768,2]
[388156915,1759021848180,-4120.80848712,0.0003579,2]
[388156916,1759021848192,-173.91666864,0.0003579,2]
[388156917,1759021848201,-500.0,0.00035797,30]
[388156918,1759021848210,-165.373404,0.000358,20]
[388156919,1759021848219,-500.0,0.00035835,13]
[388156920,1759021848229,-500.0,0.00035857,13]
[388156921,1759021848238,-500.0,0.00035873,5]
[388156922,1759021848248,-500.0,0.00035873,5]
[388156923,1759021848257,-500.0,0.00035873,5]
[388156924,1759021848267,-453.0,0.00035873,5]
[388156925,1759021848276,-500.0,0.00035873,5]
[388156926,1759021848293,-500.0,0.00035873,5]
[388156927,1759021848302,-500.0,0.00035873,5]
[388156928,1759021848312,-500.0,0.00035873,5]
[388156929,1759021848321,-488.55360538,0.00035873,5]
[388156930,1759021848330,-500.0,0.00035873,5]
[388156931,1759021848340,-500.0,0.00035873,5]
[388156932,1759021848350,-500.0,0.00035873,5]
[388156933,1759021848359,-500.0,0.00035873,5]
[388156934,1759021848369,-500.0,0.00035873,5]
[388156935,1759021848379,-500.0,0.00035873,5]
[388156936,1759021848388,-500.0,0.00035873,5]
[388156937,1759021848398,-500.0,0.00035873,5]
[388156938,1759021848407,-500.0,0.00035873,5]
[388156939,1759021848416,-528.77436745,0.00035873,5]
[388156940,1759021848425,-500.0,0.00035873,5]
[388156941,1759021848435,-500.0,0.00035873,5]
[388156942,1759021848444,-500.0,0.00035873,5]
[388156943,1759021848453,-164.89100626,0.00035889,10]
[388156944,1759021848462,-260.59621547,0.00035889,9]
[388156945,1759021848471,-684.69,0.0003589,9]
[388156946,1759021848480,-480.0,0.0003589,9]
[388156947,1759021848490,-532.11,0.0003589,9]
[388156948,1759021848504,-480.0,0.0003589,9]
[388156949,1759021848560,-545.04042155,0.0003589,9]
[388156950,1759021848571,-480.0,0.0003589,9]
[388156951,1759021848580,-480.0,0.0003589,9]
[388156952,1759021848590,-480.0,0.0003589,9]
[388156953,1759021848599,-516.81,0.0003589,9]
[388156954,1759021848608,-495.28,0.0003589,9]
[388156955,1759021848617,-497.97888243,0.0003589,9]
[388156956,1759021848625,-1111.54,0.0003589,9]
[388156957,1759021848633,-1065.23,0.0003589,9]
[388156958,1759021848641,-480.0,0.0003589,9]
[388156959,1759021848649,-480.0,0.0003589,9]
[388156960,1759021848657,-480.0,0.0003589,9]
[388156961,1759021848666,-480.0,0.0003589,9]
[388156962,1759021848675,-480.0,0.0003589,9]
[388156963,1759021848684,-982.1,0.0003589,9]
[388156964,1759021848694,-480.0,0.0003589,9]
[388156965,1759021848703,-480.0,0.0003589,9]
[388156966,1759021848712,-480.0,0.0003589,9]
[388156967,1759021848722,-480.0,0.0003589,9]
[388156968,1759021848732,-480.0,0.0003589,9]
[388156969,1759021848742,-743.62,0.0003589,9]
[388156970,1759021848751,-480.0,0.0003589,9]
[388156971,1759021848760,-480.0,0.0003589,9]
[388156972,1759021848769,-480.0,0.0003589,9]
[388156973,1759021848779,-480.0,0.0003589,9]
[388156974,1759021848788,-788.13,0.0003589,9]
[388156975,1759021848797,-502.69,0.0003589,9]
[388156976,1759021848808,-480.0,0.0003589,9]
[388156977,1759021848816,-915.07,0.0003589,9]
[388156978,1759021848826,-815.48,0.0003589,9]
[388156979,1759021848836,-483.31,0.0003589,9]
[388156980,1759021848845,-480.0,0.0003589,9]
[388156981,1759021848854,-480.0,0.0003589,9]
[388156982,1759021848863,-837.6,0.0003589,9]
[388156983,1759021848873,-480.0,0.0003589,9]
[388156984,1759021848882,-480.0,0.0003589,9]
[388156985,1759021848891,-640.86,0.0003589,9]
[388156986,1759021848900,-832.14,0.0003589,9]
[388156987,1759021848909,-480.0,0.0003589,9]
[388156988,1759021848918,-480.0,0.0003589,9]
[388156989,1759021848928,-480.0,0.0003589,9]
[388156990,1759021848937,-480.0,0.0003589,9]
[388156991,1759021848946,-480.0,0.0003589,9]
[388156992,1759021848955,-639.13,0.0003589,9]
[388156993,1759021848965,-480.0,0.0003589,9]
[388156994,1759021848974,-1000.0,0.0003589,9]
[388156995,1759021848985,-480.0,0.0003589,9]
[388156996,1759021848994,-985.59,0.0003589,9]
[388156997,1759021849004,-494.35671062,0.0003589,9]
[388156998,1759021849014,-486.46995733,0.0003589,9]
[388156999,1759021849023,-480.0,0.0003589,9]
[388157000,1759021849032,-480.0,0.0003589,9]
[388157001,1759021849042,-480.0,0.0003589,9]
[388157002,1759021849051,-480.0,0.0003589,9]
[388157003,1759021849060,-480.0,0.0003589,9]
[388157004,1759021849069,-480.0,0.0003589,9]
[388157005,1759021849079,-480.0,0.0003589,9]
[388157006,1759021849089,-480.0,0.0003589,9]
[388157007,1759021849099,-480.0,0.0003589,9]
[388157008,1759021849109,-480.0,0.0003589,9]
[388157009,1759021849118,-480.0,0.0003589,9]
[388157010,1759021849128,-480.0,0.0003589,9]
[388157011,1759021849137,-357.26455312,0.0003589,9]
[388157012,1759021849147,-480.0,0.0003589,9]
[388157013,1759021849157,-480.0,0.0003589,9]
[388157014,1759021849166,-480.0,0.0003589,9]
[388157015,1759021849175,-480.0,0.0003589,9]
[388157016,1759021849185,-480.0,0.0003589,9]
[388157017,1759021849197,-480.0,0.0003589,9]
[388157018,1759021849208,-480.0,0.0003589,9]
[388157019,1759021849217,-480.0,0.0003589,9]
[388157020,1759021849227,-480.0,0.0003589,9]
[388157021,1759021849237,-1625.23,0.0003589,9]
[388157022,1759021849246,-480.0,0.0003589,9]
[388157023,1759021849255,-1049.77,0.0003589,9]
[388157024,1759021849264,-480.0,0.0003589,9]
[388157025,1759021849275,-480.0,0.0003589,9]
[388157026,1759021849291,-480.0,0.0003589,9]
[388157027,1759021849301,-480.0,0.0003589,9]
[388157028,1759021849311,-480.0,0.0003589,9]
[388157029,1759021849320,-480.0,0.0003589,9]
[388157030,1759021849330,-480.0,0.0003589,9]
[388157031,1759021849339,-480.0,0.0003589,9]
[388157032,1759021849348,-480.0,0.0003589,9]
[388157033,1759021849357,-480.0,0.0003589,9]
[388157034,1759021849370,-480.0,0.0003589,9]
[388157035,1759021849384,-480.0,0.0003589,9]
[388157036,1759021849394,-480.0,0.0003589,9]
[388157037,1759021849403,-746.31,0.0003589,9]
[388157038,1759021849412,-480.0,0.0003589,9]
[388157039,1759021849422,-480.0,0.0003589,9]
[388157040,1759021849431,-480.0,0.0003589,9]
[388157041,1759021849440,-480.0,0.0003589,9]
[388157042,1759021849448,-480.0,0.0003589,9]
[388157043,1759021849457,-929.09,0.0003589,9]
[388157044,1759021849466,-1151.89,0.0003589,9]
[388157045,1759021849475,-832.46,0.0003589,9]
[388157046,1759021849487,-513.0,0.0003589,9]
[388157047,1759021849496,-480.0,0.0003589,9]
[388157048,1759021849506,-587.93,0.0003589,9]
[388157049,1759021849516,-932.73,0.0003589,9]
[388157050,1759021849525,-871.27,0.0003589,9]
[388157051,1759021849534,-649.68,0.0003589,9]
[388157052,1759021849544,-480.0,0.0003589,9]
[388157053,1759021849553,-480.0,0.0003589,9]
[388157054,1759021849562,-251.0,0.0003589,30]
[388157055,1759021849571,-1224.7,0.0003589,9]
[388157056,1759021849580,-480.0,0.0003589,9]
[388157057,1759021849589,-712.84,0.0003589,9]
[388157058,1759021849598,-480.0,0.0003589,9]
[388157059,1759021849607,-659.67,0.0003589,9]
[388157060,1759021849616,-480.0,0.0003589,9]
[388157061,1759021849625,-480.0,0.0003589,9]
[388157062,1759021849635,-480.0,0.0003589,9]
[388157063,1759021849645,-480.0,0.0003589,9]
[388157064,1759021849655,-480.0,0.0003589,9]
[388157065,1759021849663,-480.0,0.0003589,9]
[388157066,1759021849672,-480.0,0.0003589,9]
[388157067,1759021849681,-480.0,0.0003589,9]
[388157068,1759021849690,-480.0,0.0003589,9]
[388157069,1759021849700,-1110.23,0.0003589,9]
[388157070,1759021849711,-780.67,0.0003589,9]
[388157071,1759021849721,-798.52,0.0003589,9]
[388157072,1759021849731,-480.0,0.0003589,9]
[388157073,1759021849740,-480.0,0.0003589,9]
[388157074,1759021849749,-480.0,0.0003589,9]
[388157075,1759021849758,-480.0,0.0003589,9]
[388157076,1759021849769,-1415.63,0.0003589,9]
[388157077,1759021849780,-608.11,0.0003589,9]
[388157078,1759021849789,-722.36,0.0003589,9]
[388157079,1759021849799,-480.0,0.0003589,9]
[388157080,1759021849808,-896.08,0.0003589,9]
[388157081,1759021849817,-1571.0,0.0003589,9]
[388157082,1759021849826,-480.0,0.0003589,9]
[388157083,1759021849835,-480.0,0.0003589,9]
[388157084,1759021849844,-937.74,0.0003589,9]
[388157085,1759021849853,-677.58,0.0003589,9]
[388157086,1759021849862,-480.0,0.0003589,9]
[388157087,1759021849871,-480.0,0.0003589,9]
[388157088,1759021849880,-480.0,0.0003589,9]
[388157089,1759021849890,-1781.73,0.0003589,9]
[388157090,1759021849899,-480.0,0.0003589,9]
[388157091,1759021849908,-650.15,0.0003589,9]
[388157092,1759021849917,-1328.12,0.0003589,9]
[388157093,1759021849926,-480.0,0.0003589,9]
[388157094,1759021849935,-645.53,0.0003589,9]
[388157095,1759021849944,-1050.96,0.0003589,9]
[388157096,1759021849953,-480.0,0.0003589,9]
[388157097,1759021849962,-480.0,0.0003589,9]
[388157098,1759021849972,-480.0,0.0003589,9]
[388157099,1759021849983,-795.32,0.0003589,9]
[388157100,1759021849995,-191.52444063,0.0003589,9]
[388157101,1759021850004,-480.0,0.0003589,9]
[388157102,1759021850015,-478.91966931,0.0003589,2]
[388157103,1759021850025,-480.0,0.0003589,9]
[388157104,1759021850034,-480.0,0.0003589,9]
[388157105,1759021850044,-480.0,0.0003589,9]
[388157106,1759021850054,-549.9,0.0003589,9]
[388157107,1759021850064,-480.0,0.0003589,9]
[388157108,1759021850073,-695.73,0.0003589,9]
[388157109,1759021850083,-568.68,0.0003589,9]
[388157110,1759021850092,-480.0,0.0003589,9]
[388157111,1759021850101,-480.0,0.0003589,9]
[388157112,1759021850111,-845.91,0.0003589,9]
[388157113,1759021850122,-480.0,0.0003589,9]
[388157114,1759021850132,-822.88,0.0003589,9]
[388157115,1759021850141,-480.0,0.0003589,9]
[388157116,1759021850151,-480.0,0.0003589,9]
[388157117,1759021850160,-952.51,0.0003589,9]
[388157118,1759021850169,-480.0,0.0003589,9]
[388157119,1759021850179,-524.88,0.0003589,9]
[388157120,1759021850188,-480.0,0.0003589,9]
[388157121,1759021850197,-480.0,0.0003589,9]
[388157122,1759021850206,-480.0,0.0003589,9]
[388157123,1759021850215,-480.0,0.0003589,9]
[388157124,1759021850225,-798.7,0.0003589,9]
[388157125,1759021850235,-480.0,0.0003589,9]
[388157126,1759021850244,-480.0,0.0003589,9]
[388157127,1759021850253,-480.0,0.0003589,9]
[388157128,1759021850262,-480.0,0.0003589,9]
[388157129,1759021850271,-457.2197396,0.0003589,9]
[388157130,1759021850281,-480.0,0.0003589,9]
[388157131,1759021850290,-480.0,0.0003589,9]
[388157132,1759021850300,-929.12,0.0003589,9]
[388157133,1759021850310,-480.0,0.0003589,9]
[388157134,1759021850320,-909.04,0.0003589,9]
[388157135,1759021850329,-480.0,0.0003589,9]
[388157136,1759021850339,-480.0,0.0003589,9]
[388157137,1759021850349,-509.81,0.0003589,9]
[388157138,1759021850359,-480.0,0.0003589,9]
[388157139,1759021850369,-480.0,0.0003589,9]
[388157140,1759021850379,-480.0,0.0003589,9]
[388157141,1759021850389,-480.0,0.0003589,9]
[388157142,1759021850399,-754.95,0.0003589,9]
[388157143,1759021850408,-480.0,0.0003589,7]
[388157144,1759021850418,-480.0,0.0003589,9]
[388157145,1759021850427,-480.0,0.0003589,9]
[388157146,1759021850437,-1150.58,0.0003589,9]
[388157147,1759021850446,-480.0,0.0003589,9]
[388157148,1759021850455,-491.05418596,0.0003589,9]
[388157149,1759021850464,-480.0,0.0003589,9]
[388157150,1759021850473,-1317.01,0.0003589,9]
[388157151,1759021850483,-1115.43,0.0003589,9]
[388157152,1759021850493,-488.65,0.0003589,9]
[388157153,1759021850506,-1230.79,0.0003589,9]
[388157154,1759021850516,-480.0,0.0003589,9]
[388157155,1759021850526,-324.56081514,0.0003589,9]
[388157156,1759021850536,-480.0,0.0003589,9]
[388157157,1759021850546,-1236.18,0.0003589,9]
[388157158,1759021850557,-1624.11,0.0003589,9]
[388157159,1759021850567,-480.0,0.0003589,9]
[388157160,1759021850577,-537.28,0.0003589,9]
[388157161,1759021850588,-480.0,0.0003589,9]
[388157162,1759021850598,-480.0,0.0003589,9]
[388157163,1759021850608,-1023.11,0.0003589,9]
[388157164,1759021850619,-480.0,0.0003589,9]
[388157165,1759021850629,-480.0,0.0003589,9]
[388157166,1759021850639,-480.0,0.0003589,9]
[388157167,1759021850649,-480.0,0.0003589,9]
[388157168,1759021850659,-614.43677728,0.0003589,9]
[388157169,1759021850669,-480.0,0.0003589,9]
[388157170,1759021850680,-712.15,0.0003589,9]
[388157171,1759021850689,-641.34,0.0003589,9]
[388157172,1759021850700,-480.0,0.0003589,9]
[388157173,1759021850709,-480.0,0.0003589,9]
[388157174,1759021850720,-674.35,0.0003589,9]
[388157175,1759021850730,-941.26,0.0003589,9]
[388157176,1759021850740,-480.0,0.0003589,9]
[388157177,1759021850750,-717.5,0.0003589,9]
[388157178,1759021850760,-480.0,0.0003589,9]
[388157179,1759021850770,-433.50390075,0.0003589,9]
[388157180,1759021850780,-480.0,0.0003589,9]
[388157181,1759021850790,-480.0,0.0003589,9]
[388157182,1759021850801,-480.0,0.0003589,9]
[388157183,1759021850812,-1416.24,0.0003589,9]
[388157184,1759021850821,-480.0,0.0003589,9]
[388157185,1759021850831,-480.0,0.0003589,9]
[388157186,1759021850840,-480.0,0.0003589,9]
[388157187,1759021850850,-495.4758876,0.0003589,9]
[388157188,1759021850859,-2039.11,0.0003589,9]
[388157189,1759021850869,-2088.47,0.0003589,9]
[388157190,1759021850879,-480.0,0.0003589,9]
[388157191,1759021850889,-377.46566026,0.0003589,9]
[388157192,1759021850899,-480.0,0.0003589,9]
[388157193,1759021850909,-298.46400398,0.0003589,9]
[388157194,1759021850919,-1743.46,0.0003589,9]
[388157195,1759021850930,-480.0,0.0003589,9]
[388157196,1759021850940,-480.0,0.0003589,9]
[388157197,1759021850950,-1080.22,0.0003589,9]
[388157198,1759021850960,-480.0,0.0003589,9]
[388157199,1759021850970,-480.0,0.0003589,9]
[388157200,1759021850980,-480.0,0.0003589,9]
[388157201,1759021850991,-1632.21,0.0003589,9]
[388157202,1759021851000,-786.16,0.0003589,9]
[388157203,1759021851010,-711.41,0.0003589,9]
[388157204,1759021851020,-843.56,0.0003589,9]
[388157205,1759021851029,-480.0,0.0003589,9]
[388157206,1759021851039,-480.0,0.0003589,9]
[388157207,1759021851048,-638.86,0.0003589,9]
[388157208,1759021851057,-480.0,0.0003589,9]
[388157209,1759021851067,-500.0,0.0003589,9]
[388157210,1759021851076,-480.0,0.0003589,9]
[388157211,1759021851085,-480.68,0.0003589,9]
[388157212,1759021851095,-480.0,0.0003589,9]
[388157213,1759021851104,-1412.46,0.0003589,9]
[388157214,1759021851114,-480.0,0.0003589,9]
[388157215,1759021851123,-480.0,0.0003589,9]
[388157216,1759021851133,-824.67,0.0003589,9]
[388157217,1759021851142,-539.29,0.0003589,9]
[388157218,1759021851152,-480.0,0.0003589,9]
[388157219,1759021851161,-480.0,0.0003589,9]
[388157220,1759021851171,-1045.11,0.0003589,9]
[388157221,1759021851180,-480.0,0.0003589,9]
[388157222,1759021851190,-480.0,0.0003589,9]
[388157223,1759021851200,-480.0,0.0003589,9]
[388157224,1759021851210,-480.0,0.0003589,7]
[388157225,1759021851220,-480.0,0.0003589,9]
[388157226,1759021851231,-480.0,0.0003589,9]
[388157227,1759021851240,-480.0,0.0003589,9]
[388157228,1759021851250,-578.32,0.0003589,9]
[388157229,1759021851260,-480.0,0.0003589,9]
[388157230,1759021851269,-920.64,0.0003589,9]
[388157231,1759021851279,-1005.67,0.0003589,9]
[388157232,1759021851291,-480.0,0.0003589,9]
[388157233,1759021851300,-480.0,0.0003589,9]
[388157234,1759021851311,-568.75,0.0003589,9]
[388157235,1759021851321,-480.0,0.0003589,9]
[388157236,1759021851330,-480.0,0.0003589,9]
[388157237,1759021851340,-480.0,0.0003589,9]
[388157238,1759021851349,-480.0,0.0003589,9]
[388157239,1759021851359,-480.0,0.0003589,9]
[388157240,1759021851369,-825.5,0.0003589,9]
[388157241,1759021851379,-929.7,0.0003589,9]
[388157242,1759021851389,-929.7,0.0003589,9]
[388157243,1759021851399,-841.42,0.0003589,9]
[388157244,1759021851408,-480.0,0.0003589,9]
[388157245,1759021851418,-480.0,0.0003589,9]
[388157246,1759021851428,-847.13,0.0003589,9]
[388157247,1759021851438,-480.0,0.0003589,9]
[388157248,1759021851447,-1139.0,0.0003589,9]
[388157249,1759021851457,-480.0,0.0003589,9]
[388157250,1759021851467,-865.38,0.0003589,9]
[388157251,1759021851477,-480.0,0.0003589,9]
[388157252,1759021851487,-480.0,0.0003589,9]
[388157253,1759021851501,-644.68,0.0003589,9]
[388157254,1759021851511,-480.0,0.0003589,9]
[388157255,1759021851521,-480.0,0.0003589,9]
[388157256,1759021851531,-515.52,0.0003589,9]
[388157257,1759021851542,-3612.7,0.0003589,9]
[388157258,1759021851551,-480.0,0.0003589,9]
[388157259,1759021851562,-289.09893209,0.0003589,3]
[388157260,1759021851572,-480.0,0.0003589,9]
[388157261,1759021851582,-1554.39,0.0003589,9]
[388157262,1759021851592,-1241.07,0.0003589,9]
[388157263,1759021851602,-565.63163288,0.0003589,9]
[388157264,1759021851611,-480.0,0.0003589,9]
[388157265,1759021851621,-544.16,0.0003589,9]
[388157266,1759021851630,-480.0,0.0003589,9]
[388157267,1759021851639,-480.0,0.0003589,9]
[388157268,1759021851649,-500.0,0.0003589,9]
[388157269,1759021851658,-3049.69,0.0003589,9]
[388157270,1759021851668,-480.0,0.0003589,9]
[388157271,1759021851678,-480.0,0.0003589,9]
[388157272,1759021851688,-1101.71,0.0003589,9]
[388157273,1759021851698,-480.0,0.0003589,9]
[388157274,1759021851707,-480.0,0.0003589,9]
[388157275,1759021851716,-822.61,0.0003589,9]
[388157276,1759021851726,-480.0,0.0003589,9]
[388157277,1759021851735,-1015.31,0.0003589,9]
[388157278,1759021851745,-571.37,0.0003589,9]
[388157279,1759021851754,-480.0,0.0003589,9]
[388157280,1759021851764,-1093.45,0.0003589,9]
[388157281,1759021851777,-480.0,0.0003589,9]
[388157282,1759021851787,-480.0,0.0003589,9]
[388157283,1759021851796,-816.01,0.0003589,9]
[388157284,1759021851806,-869.95,0.0003589,9]
[388157285,1759021851816,-1132.52,0.0003589,9]
[388157286,1759021851825,-480.0,0.0003589,9]
[388157287,1759021851835,-480.0,0.0003589,9]
[388157288,1759021851844,-480.0,0.0003589,9]
[388157289,1759021851854,-480.0,0.0003589,9]
[388157290,1759021851864,-282.47934986,0.0003589,9]
[388157291,1759021851873,-600.42867433,0.0003589,9]
[388157292,1759021851883,-787.47,0.0003589,9]
[388157293,1759021851892,-3842.75,0.0003589,9]
[388157294,1759021851902,-480.0,0.0003589,9]
[388157295,1759021851911,-480.0,0.0003589,9]
[388157296,1759021851922,-971.63,0.0003589,9]
[388157297,1759021851932,-480.0,0.0003589,9]
[388157298,1759021851941,-879.88,0.0003589,9]
[388157299,1759021851951,-908.07,0.0003589,9]
[388157300,1759021851960,-480.0,0.0003589,9]
[388157301,1759021851970,-895.43,0.0003589,9]
[388157302,1759021851979,-754.2,0.0003589,9]
[388157303,1759021851989,-595.15,0.0003589,9]
[388157304,1759021851998,-906.04,0.0003589,9]
[388157305,1759021852008,-480.0,0.0003589,9]
[388157306,1759021852017,-1810.05,0.0003589,9]
[388157307,1759021852027,-1109.0,0.0003589,9]
[388157308,1759021852036,-480.0,0.0003589,9]
[388157309,1759021852046,-545.5,0.0003589,9]
[388157310,1759021852055,-155.53766735,0.0003589,9]
[388157311,1759021852065,-480.0,0.0003589,9]
[388157312,1759021852074,-480.0,0.0003589,9]
[388157313,1759021852083,-884.06,0.0003589,9]
[388157314,1759021852093,-761.81,0.0003589,9]
[388157315,1759021852103,-480.0,0.0003589,9]
[388157316,1759021852112,-480.0,0.0003589,9]
[388157317,1759021852121,-480.0,0.0003589,9]
[388157318,1759021852131,-1605.71,0.0003589,9]
[388157319,1759021852140,-1236.95,0.0003589,9]
[388157320,1759021852149,-1409.68,0.0003589,9]
[388157321,1759021852159,-1198.65,0.0003589,9]
[388157322,1759021852169,-480.0,0.0003589,9]
[388157323,1759021852179,-1361.54,0.0003589,9]
[388157324,1759021852188,-480.0,0.0003589,9]
[388157325,1759021852198,-480.0,0.0003589,9]
[388157326,1759021852208,-480.0,0.0003589,9]
[388157327,1759021852377,-6141.04,0.0003589,9]
[388157328,1759021852389,-1736.32,0.0003589,9]
[388157329,1759021852399,-1178.21,0.0003589,9]
[388157330,1759021852408,-208.83436989,0.0003589,9]
[388157331,1759021852418,-484.35,0.0003589,9]
[388157332,1759021852427,-480.0,0.0003589,9]
[388157333,1759021852436,-919.56,0.0003589,9]
[388157334,1759021852446,-900.77,0.0003589,9]
[388157335,1759021852455,-480.0,0.0003589,9]
[388157336,1759021852464,-480.0,0.0003589,9]
[388157337,1759021852474,-655.84,0.0003589,9]
[388157338,1759021852483,-480.0,0.0003589,9]
[388157339,1759021852491,-3678.99,0.0003589,9]
[388157340,1759021852506,-480.0,0.0003589,9]
[388157341,1759021852516,-480.0,0.0003589,9]
[388157342,1759021852526,-480.0,0.0003589,9]
[388157343,1759021852535,-480.0,0.0003589,9]
[388157344,1759021852544,-480.0,0.0003589,9]
[388157345,1759021852554,-1115.74,0.0003589,9]
[388157346,1759021852563,-480.0,0.0003589,9]
[388157347,1759021852573,-592.58,0.0003589,9]
[388157348,1759021852583,-480.0,0.0003589,9]
[388157349,1759021852592,-480.0,0.0003589,9]
[388157350,1759021852601,-480.0,0.0003589,9]
[388157351,1759021852610,-480.0,0.0003589,9]
[388157352,1759021852619,-617.49,0.0003589,9]
[388157353,1759021852629,-9154.61,0.0003589,9]
[388157354,1759021852639,-480.0,0.0003589,9]
[388157355,1759021852649,-868.79,0.0003589,9]
[388157356,1759021852659,-480.0,0.0003589,9]
[388157357,1759021852668,-480.0,0.0003589,9]
[388157358,1759021852677,-1335.18,0.0003589,9]
[388157359,1759021852686,-855.8,0.0003589,9]
[388157360,1759021852696,-996.56,0.0003589,9]
[388157361,1759021852707,-480.0,0.0003589,9]
[388157362,1759021852716,-666.28,0.0003589,9]
[388157363,1759021852726,-480.0,0.0003589,9]
[388157364,1759021852735,-925.28,0.0003589,9]
[388157365,1759021852744,-480.0,0.0003589,9]
[388157366,1759021852754,-4225.86,0.0003589,9]
[388157367,1759021852763,-4303.31,0.0003589,9]
[388157368,1759021852772,-3201.47,0.0003589,9]
[388157369,1759021852781,-480.0,0.0003589,9]
[388157370,1759021852791,-480.0,0.0003589,9]
[388157371,1759021852800,-480.0,0.0003589,9]
[388157372,1759021852810,-817.41,0.0003589,9]
[388157373,1759021852819,-480.0,0.0003589,9]
[388157374,1759021852829,-1141.81,0.0003589,9]
[388157375,1759021852838,-504.36557106,0.0003589,9]
[388157376,1759021852848,-480.0,0.0003589,9]
[388157377,1759021852856,-480.0,0.0003589,9]
[388157378,1759021852866,-1099.44,0.0003589,9]
[388157379,1759021852875,-480.0,0.0003589,7]
[388157380,1759021852885,-580.81887886,0.0003589,9]
[388157381,1759021852895,-1907.55,0.0003589,9]
[388157382,1759021852906,-230.69309321,0.0003589,9]
[388157383,1759021852915,-480.0,0.0003589,9]
[388157384,1759021852924,-480.0,0.0003589,9]
[388157385,1759021852933,-480.0,0.0003589,9]
[388157386,1759021852943,-781.6,0.0003589,9]
[388157387,1759021852953,-480.0,0.0003589,9]
[388157388,1759021852963,-585.84,0.0003589,9]
[388157389,1759021852972,-1622.17,0.0003589,9]
[388157390,1759021852981,-927.37,0.0003589,9]
[388157391,1759021852991,-480.0,0.0003589,9]
[388157392,1759021853000,-480.0,0.0003589,9]
[388157393,1759021853009,-444.14646745,0.0003589,9]
[388157394,1759021853019,-10174.52,0.0003589,9]
[388157395,1759021853028,-480.0,0.0003589,9]
[388157396,1759021853037,-480.0,0.0003589,9]
[388157397,1759021853047,-480.0,0.0003589,9]
[388157398,1759021853060,-888.36,0.0003589,9]
[388157399,1759021853072,-2813.87,0.0003589,9]
[388157400,1759021853081,-1030.1,0.0003589,9]
[388157401,1759021853091,-994.34,0.0003589,9]
[388157402,1759021853101,-480.0,0.0003589,9]
[388157403,1759021853111,-480.0,0.0003589,9]
[388157404,1759021853121,-480.0,0.0003589,9]
[388157405,1759021853131,-2508.05,0.0003589,9]
[388157406,1759021853140,-664.94,0.0003589,9]
[388157407,1759021853150,-480.0,0.0003589,9]
[388157408,1759021853159,-189.3309625,0.0003589,7]
[388157409,1759021853168,-480.0,0.0003589,9]